Cogmind - Beta 13 @@@ ROGUE MODE // 2024.03.12 @ 03:35:49 Player: Grim Result: Self-destructed Performance ------------- Evolutions (2) 1000 Regions Visited (5) 1000 Robots Destroyed (24) 120 Value Destroyed (556) 556 Prototype IDs (1) 20 Alien Tech Used (0) 0 Bonus (0) 0 TOTAL SCORE: 2696 Bonus ------- None Cogmind --------- Core Integrity 63/550 Matter 170/300 Energy 100/100 System Corruption 0% Temperature Cool (9) Movement Core (350) Ox6 Location -8/Materials Parts ------- > --- POWER (1) -------- (None) > --- PROPULSION (4) --- (None) > --- UTILITY (4) ------ Large Storage Unit Signal Interpreter Improved Terrain Scan Processor > --- WEAPON (2) ------- (None) > --- INVENTORY (15) --- (None) Peak State ------------ > --- POWER ------------ Light Nuclear Core > --- PROPULSION ------- Aluminum Leg Aluminum Leg Aluminum Leg Carbon-fiber Leg > --- UTILITY ---------- Large Storage Unit Improved Terrain Scan Processor > --- WEAPON ----------- Improved Medium Laser Minigun > --- INVENTORY -------- Ion Engine Aluminum Leg Heat Sink Sensor Array Signal Interpreter Seismic Detector Medium Laser Grenade Launcher [Rating: 19] Favorites ----------- Power Light Nuclear Core Engine Ion Engine Power Core Light Nuclear Core Propulsion Aluminum Leg Leg Aluminum Leg Wheel Compact Wheel Flight Unit Flight Unit Utility Improved Terrain Scan Processor Device Sensor Array Storage Large Storage Unit Processor Improved Terrain Scan Processor Weapon Minigun Energy Gun Medium Laser Ballistic Gun Minigun Launcher Grenade Launcher Build | -11 -10 -10 -9 -9 -8 ------- Run | Yrd Mat Min Mat Min Mat Slots Evolved 4 | . . . 2 . 2 Power . | . . . . . . Propulsion 2 | . . . 2 . . Utility 2 | . . . . . 2 Weapon . | . . . . . . Parts Attached 28 | 8 3 3 5 5 4 Power 2 | 1 . 1 . . . Engine 1 | 1 . . . . . Core 1 | . . 1 . . . Reactor . | . . . . . . Propulsion 11 | 4 . . 3 4 . Treads . | . . . . . . Leg 5 | 2 . . 3 . . Wheel 2 | 2 . . . . . Hover . | . . . . . . Flight 4 | . . . . 4 . Utility 5 | 1 . 1 1 . 2 Device 1 | . . . . . 1 Storage 2 | 1 . . 1 . . Processor 2 | . . 1 . . 1 Hackware . | . . . . . . Protection . | . . . . . . Artifact . | . . . . . . Weapon 10 | 2 3 1 1 1 2 Energy Gun 5 | 1 2 . 1 1 . Energy Cannon . | . . . . . . Ballistic Gun 3 | 1 . 1 . . 1 Ballistic Cannon . | . . . . . . Launcher 2 | . 1 . . . 1 Special Weapon . | . . . . . . Impact Weapon . | . . . . . . Slashing Weapon . | . . . . . . Piercing Weapon . | . . . . . . Special Melee Weapon . | . . . . . . Unidentified Prototypes 1 | . . . 1 . . Parts Lost 11 | . . . . 2 9 Power 1 | . . . . . 1 Propulsion 5 | . . . . 1 4 Utility 1 | . . . . . 1 Weapon 4 | . . . . 1 3 Highest Loss Streak 9 | . . . . 1 9 To Critical Strikes . | . . . . . . Average Slot Usage (%) 94 | . 85 99 100 99 81 Engine 2 | . 14 . . . . Core 8 | . . 13 11 11 5 Leg 28 | . 28 28 44 14 . Flight 7 | . . . . 29 27 Device 1 | . . . . . 7 Storage 11 | . 14 14 11 11 9 Processor 10 | . . 13 11 11 18 Energy Gun 12 | . 19 14 11 11 6 Ballistic Gun 8 | . 1 12 11 11 6 Launcher 1 | . 7 1 . . . Naked Turns . | . . . . . . Heaviest Build 31 | 14 15 15 31 31 31 Greatest Support 45 | 32 20 20 45 45 16 Greatest Overweight (x) 6 | . . . . 1 6 Average Overweight (x) . | . . . . . 1 Largest Inventory Capacity 15 | 8 8 8 15 15 15 Average Capacity 11 | 7 8 8 12 15 15 Most Carried 10 | 4 7 8 8 10 2 Average Carried 5 | 1 5 7 7 4 . Final Capacity 15 | 8 8 8 15 15 15 Final Carried 8 | 2 7 8 7 3 . Class Distribution -------------------- 83% | Mutant 16% | Scavenger-Mutant Dominant Class ---------------- Mutant | -10/Materials Mutant | -10/Mines Mutant | -9/Materials Scavenger-Mutant | -9/Mines Scavenger-Mutant | -8/Materials Resources | -11 -10 -10 -9 -9 -8 ----------- Run | Yrd Mat Min Mat Min Mat Matter Collected 563 | 253 107 30 162 11 . Remotely . | . . . . . . Salvage Created 589 | . 174 . 333 59 23 Parts 44 | . 13 . 21 8 2 Haulers Intercepted . | . . . . . . Recyclers Shooed . | . . . . . . Parts Field Recycled . | . . . . . . Retrieved Matter . | . . . . . . Parts Self-Destructed . | . . . . . . Prevented . | . . . . . . Kills | -11 -10 -10 -9 -9 -8 ------- Run | Yrd Mat Min Mat Min Mat Combat Hostiles Destroyed 19 | . 7 . 8 4 . Guns 12 | . . . 8 4 . AOE 7 | . 7 . . . . Classes Destroyed 6 | . 1 . 5 . . Tunneler 1 | . . . 1 . . Operator 1 | . . . 1 . . Watcher 3 | . . . 2 . 1 Swarmer 8 | . . . 4 4 . Grunt 10 | . 7 . 3 . . Brawler 1 | . . . 1 . . Best Kill Streak 8 | . 4 . 8 2 1 Combat Bots Only 6 | . 4 . 6 2 . Max Kills in Single Turn 3 | . 3 . 2 1 1 Gunslinging . | . . . . . . Exploded 3 | . 3 . . . . Melee . | . . . . . . Uniques/NPCs Destroyed . | . . . . . . Combat | -11 -10 -10 -9 -9 -8 -------- Run | Yrd Mat Min Mat Min Mat Hostile Shots Fired 175 | . 31 . 24 41 79 Missed 51 | . 9 . 8 15 19 Damage Taken 1672 | . 275 . 220 203 974 Core 615 | . 69 . 23 36 487 Absorbed by Shields . | . . . . . . Core Remaining (%) 85 | 100 . 72 . 85 . Volleys Fired 59 | . 8 . 28 13 10 Largest 2 | . 2 . 2 2 2 Hottest 100 | . 100 . 81 81 80 Shots Fired 116 | . 16 . 56 26 18 Gun 108 | . 11 . 56 26 15 Cannon . | . . . . . . Launcher 8 | . 5 . . . 3 Special . | . . . . . . Kinetic 47 | . . . 28 13 6 Thermal 61 | . 11 . 28 13 9 Explosive 8 | . 5 . . . 3 Electromagnetic . | . . . . . . Robot Hit Streak 6 | . 6 . 5 5 4 Robot Miss Streak 5 | . 2 . 5 2 1 Penetration Max . | . . . . . . Secondary Targets 2 | . . . 1 1 . Max Gunslinging Chain 1 | . . . 1 1 . Shots Hit Robots 67 | . 12 . 28 15 12 Core Hits 37 | . 13 . 13 4 7 Critical Kills . | . . . . . . Critical Parts Destroyed . | . . . . . . Critical Strikes 6 | . . . 2 1 3 Burn 6 | . . . 2 1 3 Melee Attacks . | . . . . . . Impact . | . . . . . . Slashing . | . . . . . . Piercing . | . . . . . . Sneak Attacks . | . . . . . . Combat Hostiles . | . . . . . . Follow-up Attacks . | . . . . . . Damage Inflicted 1620 | . 606 . 484 234 296 Guns 953 | . 100 . 484 234 135 Cannons . | . . . . . . Explosions 667 | . 506 . . . 161 Melee . | . . . . . . Ramming . | . . . . . . Kinetic 484 | . . . 262 136 86 Thermal 469 | . 100 . 222 98 49 Explosive 667 | . 506 . . . 161 Electromagnetic . | . . . . . . Impact . | . . . . . . Slashing . | . . . . . . Piercing . | . . . . . . Highest Corruption . | . . . . . . Average Corruption . | . . . . . . Corruption Purged . | . . . . . . Corruption Blocked . | . . . . . . Overload Shots . | . . . . . . Overflow Damage . | . . . . . . Projectiles . | . . . . . . Explosions . | . . . . . . Melee . | . . . . . . Knockbacks . | . . . . . . Impact . | . . . . . . Kinetic . | . . . . . . Secondary . | . . . . . . Self-Inflicted Damage 79 | . 36 . . . 43 Shots 5 | . 2 . . . 3 Rammed . | . . . . . . Targets Rammed . | . . . . . . Kicked . | . . . . . . Crushed . | . . . . . . Highest Temperature 225 | . 121 . 224 225 224 Average Temperature 83 | . 42 . 76 112 103 Received Heat Transfer 768 | . 132 . 24 . 612 Siege Activations . | . . . . . . Robots Corrupted . | . . . . . . Combat Hostiles . | . . . . . . Parts Fried . | . . . . . . Impact Corruptions . | . . . . . . Robots Melted . | . . . . . . Combat Hostiles . | . . . . . . Parts Melted 1 | . . . . . 1 Heat Transferred 1628 | . 296 . 629 333 370 Parts Sabotaged . | . . . . . . Parts Stolen . | . . . . . . Parts Stripped . | . . . . . . Power Chain Reactions . | . . . . . . Alert | -11 -10 -10 -9 -9 -8 ------- Run | Yrd Mat Min Mat Min Mat Peak Influence 314 | . 230 89 314 140 96 Initial 89 | . . 89 34 55 54 Average 91 | . 73 89 107 127 67 Maximum Alert Level 1 | . 1 . 1 . . Low Security (%) 90 | 100 80 100 82 100 100 Level 1 9 | . 19 . 17 . . Level 2 . | . . . . . . Level 3 . | . . . . . . Level 4 . | . . . . . . Level 5 . | . . . . . . High Security . | . . . . . . Max Security . | . . . . . . Squads Dispatched 3 | . 2 1 . . . Investigation 3 | . 2 1 . . . Extermination . | . . . . . . Reinforcement . | . . . . . . Assault . | . . . . . . Garrison . | . . . . . . Intercept . | . . . . . . Searches Triggered . | . . . . . . Construction Impeded . | . . . . . . Haulers Reinforced . | . . . . . . Active Scanning Responses . | . . . . . . Cargo Convoy Interrupts . | . . . . . . Stealth | -11 -10 -10 -9 -9 -8 --------- Run | Yrd Mat Min Mat Min Mat Distress Signals 1 | . 1 . . . . Communications Jammed . | . . . . . . Distress Signals . | . . . . . . Times Spotted 41 | . 9 . 20 5 7 Peak Tracking Total 8 | . 5 . 8 4 6 Tactical Retreats 4 | . 1 . 1 1 1 Traps | -11 -10 -10 -9 -9 -8 ------- Run | Yrd Mat Min Mat Min Mat Traps Triggered 1 | . 1 . . . . Indirectly . | . . . . . . Trap Hack Attempts . | . . . . . . Triggered . | . . . . . . Disarmed . | . . . . . . Reprogrammed . | . . . . . . Reused . | . . . . . . Traps Extracted . | . . . . . . Installed . | . . . . . . Triggered . | . . . . . . Machines | -11 -10 -10 -9 -9 -8 ---------- Run | Yrd Mat Min Mat Min Mat Machines Disabled 2 | . 1 . 1 . . Max in Single Turn 1 | . 1 . 1 . . Machines Repaired . | . . . . . . Machines Dismantled . | . . . . . . Machines Sabotaged . | . . . . . . Overloaded Fab Kills . | . . . . . . Hacking | -11 -10 -10 -9 -9 -8 --------- Run | Yrd Mat Min Mat Min Mat Machines Accessed 5 | . 1 1 2 . 1 Terminals 4 | . 1 . 2 . 1 Fabricators . | . . . . . . Repair Stations . | . . . . . . Recycling Units . | . . . . . . Scanalyzers . | . . . . . . Garrison Access . | . . . . . . Total Hacks 11 | . 4 1 2 . 4 Successful 9 | . 3 1 2 . 3 Failed 1 | . . . . . 1 Catastrophic . | . . . . . . Database Lockouts 1 | . 1 . . . . Manual . | . . . . . . Terminals 10 | . 4 . 2 . 4 Fabricators . | . . . . . . Repair Stations . | . . . . . . Recycling Units . | . . . . . . Scanalyzers . | . . . . . . Garrison Access . | . . . . . . Terminal Hacks 9 | . 3 1 2 . 3 Record 4 | . 2 . . . 2 Open Door 1 | . . 1 . . . Alert Level 1 | . . . . . 1 Dispatch Records 1 | . . . 1 . . Zone Layout 2 | . 1 . 1 . . Fabricator Hacks . | . . . . . . Repair Station Hacks . | . . . . . . Recycling Unit Hacks . | . . . . . . Scanalyzer . | . . . . . . Garrison Access Hacks . | . . . . . . Unauthorized Hacks . | . . . . . . Terminals . | . . . . . . Fabricators . | . . . . . . Repair Stations . | . . . . . . Recycling Units . | . . . . . . Scanalyzers . | . . . . . . Garrison Access . | . . . . . . Data Cores Recovered 1 | . . . 1 . . Used . | . . . . . . Hacking Detections 2 | . 1 . . . 1 Full Trace Events 1 | . 1 . . . . Feedback Events . | . . . . . . Feedback Blocked . | . . . . . . Robot Schematics Acquired . | . . . . . . Robots Built . | . . . . . . Authchips . | . . . . . . Time . | . . . . . . Total Robot Build Rating . | . . . . . . Part Schematics Acquired . | . . . . . . Parts Built . | . . . . . . Authchips . | . . . . . . Time . | . . . . . . Total Part Build Rating . | . . . . . . Parts Repaired . | . . . . . . Time . | . . . . . . Parts Recycled . | . . . . . . Recycled Matter . | . . . . . . Retrieved Matter . | . . . . . . Retrieved Components . | . . . . . . Parts Scanalyzed . | . . . . . . Part Schematics Acquired . | . . . . . . Parts Damaged . | . . . . . . Bothacking | -11 -10 -10 -9 -9 -8 ------------ Run | Yrd Mat Min Mat Min Mat Used RIF Installer . | . . . . . . Robots Hacked . | . . . . . . Non-combat . | . . . . . . Combat . | . . . . . . Robot Hacks Applied . | . . . . . . Relay Couplers Released . | . . . . . . Fabnet Peak Effective % . | . . . . . . Robots Rewired . | . . . . . . Allies Hacked . | . . . . . . Hacks Repelled . | . . . . . . Allies | -11 -10 -10 -9 -9 -8 -------- Run | Yrd Mat Min Mat Min Mat Total Allies . | . . . . . . Largest Group . | . . . . . . Highest-Rated Group . | . . . . . . Highest-Rated Ally . | . . . . . . Total Orders . | . . . . . . Ally Attacks . | . . . . . . Total Damage . | . . . . . . Kills . | . . . . . . Allies Corrupted . | . . . . . . Allies Melted . | . . . . . . Intel | -11 -10 -10 -9 -9 -8 ------- Run | Yrd Mat Min Mat Min Mat Robot Analysis Total . | . . . . . . Derelict Logs Recovered 1 | . . 1 . . . Drone Launches . | . . . . . . Drone Recoveries . | . . . . . . Exploration | -11 -10 -10 -9 -9 -8 ------------- Run | Yrd Mat Min Mat Min Mat Turns Passed 1233 | 60 221 172 447 179 154 Spaces Moved 835 | 45 154 139 295 116 86 Core 17 | 13 . . . . 4 Treads . | . . . . . . Legs 629 | 25 154 139 295 16 . Wheels 7 | 7 . . . . . Hover . | . . . . . . Flight 182 | . . . . 100 82 Fastest Speed 50 | 50 120 120 120 111 111 Average Speed 119 | 96 120 120 120 112 142 Slowest Speed 440 | 120 120 120 120 120 440 Overloaded Moves . | . . . . . . Propulsion Burnouts . | . . . . . . Robots Hopped . | . . . . . . Cave-ins Triggered . | . . . . . . Exploration Rate (%) 18 | 3 20 34 25 22 6 Regions Visited 5 Branch Regions 2 Pre-discovered Areas . | . . . . . . Known Exits Taken . | . . . . . . Unknown Exits Taken 5 | 1 1 1 1 1 . Scrap Searched 1 | . . 1 . . . Spaces Dug . | . . . . . . Terrain Destroyed 47 | . 19 . . . 28 Melee . | . . . . . . Projectile . | . . . . . . AOE 47 | . 19 . . . 28 Terrain Rammed . | . . . . . . Walls Destroyed . | . . . . . . Machines Disabled . | . . . . . . Actions | -11 -10 -10 -9 -9 -8 --------- Run | Yrd Mat Min Mat Min Mat Total 957 | 60 173 143 338 143 100 Wait . | . . . . . . Move 830 | 44 153 138 294 115 86 Hop . | . . . . . . Pick Up 26 | 8 7 1 6 4 . Fast Attach 1 | . . 1 . . . Attach 13 | 6 . . 2 2 3 Detach . | . . . . . . Swap 14 | 2 3 2 3 3 1 Drop 14 | . 2 1 5 6 . Fire 59 | . 8 . 28 13 10 Melee . | . . . . . . Ram . | . . . . . . Kick . | . . . . . . Crush . | . . . . . . Escape Stasis . | . . . . . . Rewire . | . . . . . . Trap . | . . . . . . Miscellaneous . | . . . . . . Route ------- -11/Scrapyard -10/Materials -10/Mines -9/Materials -9/Mines -8/Materials History --------- Turn | Location | Event 8 | -11/Scrapyard | Discovered new exit (range 15) 61 | -11/Scrapyard | Entered Materials 114 | -10/Materials | Central database locked down 254 | -10/Materials | Discovered new exit (range 16) 282 | -10/Materials | Entered Mines 286 | -10/Mines | Met a Derelict shopkeep closing up shop 325 | -10/Mines | Build established: Mutant 376 | -10/Mines | Discovered new exit (range 11) 386 | -10/Mines | Learned Materials interactive machine intel 454 | -10/Mines | Entered Materials 454 | -9/Materials | Evolved 2 slots: Propulsion x2 455 | -9/Materials | Loaded intel: 18 interactive machine locations 890 | -9/Materials | Discovered new exit (range 8) 901 | -9/Materials | Entered Mines 1059 | -9/Mines | Discovered new exit (range 10) 1080 | -9/Mines | Entered Materials 1080 | -8/Materials | Evolved 2 slots: Utility x2 1209 | -8/Materials | Core integrity fell below 50% 1233 | -8/Materials | Core integrity fell below 20% 1234 | -8/Materials | Self-destructed Last Messages --------------- 01177_ Lgt. Nuclear Core destroyed. 01180_ G-47 Trooper suffers critical hit (Burn). 01181_ Flight Unit destroyed. 01183_ W-25 Informer suffers critical hit (Burn). 01183_ Critical hit (Burn: +37). 01185_ Imp. Hover Unit melted. 01185_ W-25 Informer destroyed. 01187_ K-01 Serf collects debris. 01188_ G-47 Trooper suffers critical hit (Burn). 01189_ Critical hit (Burn: +37). 01190_ Med. Laser destroyed. 01191_ K-01 Serf collects debris. 01192_ Minigun destroyed. 01194_ Flight Unit destroyed. 01195_ Critical hit (Burn: +37). 01198_ Flight Unit destroyed. 01216_ Sensor Array destroyed. 01218_ Flight Unit destroyed. 01223_ M-13 Machinist repairs G-47 Trooper. Map ----- +----------------------------------------------------+ | ?????????????????????????????????????????????????? | | ?????????????????????????????????????????????????? | | ?????????????????????????????????????????????????? | | ?????????????????????????????????????????????????? | | ?????????????????????????????????????????????????? | | ?????????????????????????????????????????????????? | | ?????????????????????????????????????????????????? | | ?????????????????????????????????????????????????? | | ?????????????????????????????????????????????????? | | ?????????????????????????????????????????????????? | | ?????????????????????????????????????????????????? | | ?????????????????????????????????????????????????? | | ?????????????????????????????????????????????????? | | ?????????????????????????????????????????????????? | | ?????????????????????????????????????????????????? | | ?????????????????? ?????"""??????????????????????? | | ????????????????? ????? ??????????????????????? | | ?????????????????? ????"""??????????????????????? | | ?????????????????? ????"""??????????????????????? | | ?????????????????? ????"""??????????????????????? | | ?????????????????? ???? ??????????????????????? | | ??????????????????# ????#g#??????????????????????? | | ??????????????????# ????# #??????????????????????? | | ??????????????????# ????# #??????????????????????? | | ?????????????????## ##??# #?######???????????????? | | ???????########### ####@#!!!!!!#???????????????? | | ???????# ## ## #g#!!!!!!#???????????????? | | ???????# """"" ## ## #???????????????? | | ???????# """"" # # ##??????????????? | | ???????# """"" # m ????????? | | ???????# ## # ############?????????? | | ???????# """"" ## ## #????????????????????? | | ???????# """"" ## ########????????????????????? | | ???????# """"" ##!%!#???????????????????????????? | | ???????# ## ##??????????????????????????? | | ???????######+### #??????????????????????????? | | ?????????# #??????????????????????????? | | ?????????# T + ???????????????????? | | ?????????# # ?????????????????????? | | ?????????# ###### #??????????????????????????? | | ?????????# ?????#######??????????????????????????? | | ?????????# ??????????????????????????????????????? | | ?????????# ??????????????????????????????????????? | | ?????????#???????????????????????????????????????? | | ?????????????????????????????????????????????????? | | ?????????????????????????????????????????????????? | | ?????????????????????????????????????????????????? | | ?????????????????????????????????????????????????? | | ?????????????????????????????????????????????????? | | ?????????????????????????????????????????????????? | +----------------------------------------------------+ Best States ------------- Heat Dissipation 31 Energy Generation 14 Energy Capacity 250 Matter Stores 300 Matter Capacity 300 Sight Range 16 Robot Scan Range 14 Terrain Scan Density 110 Evasion (%) 55 Item Schematics ----------------- None Robot Schematics ------------------ None Fabricated ------------ Nothing Alien Tech Used ----------------- None Achievements -------------- None Challenges ------------ None Game ------ Seed ReflectiveHoverHumpback Manual? 0 Play Time 00:19:58 Cumulative 12.2 hours Start 2024.03.12 @ 03:16:01 End 2024.03.12 @ 03:35:49 Sessions 1 Manual Loads 0 Difficulty Rogue Special Mode None Game No. 30 Rogue 13 Adventurer 17 Explorer 0 Win Type - Total 0 Types 0/0/0/0/0/0/0/0/0 Lore% 12 Gallery% 17 Achievement% 12 Wizard Run 0 Options --------- Layout 1 ASCII 0 Keyboard 0 Movement Mouse Keybinds 0 Fullscreen 1 Font 24/Smallcaps Map View 50x35 Zoom Use 0% Tactical HUD 1 Map Filters NONE Filters NONE Steam 1 RUN: 1f8cb028-4943-4c6d-a6fb-12fd36850044